bitfinex/quotes_ETHUSD_20250706
["timestamp","ask_amount","ask_price","bid_price","bid_amount"]
[1751835581670,12.75414442,2549.7,2549.6,0.001]
[1751835582693,12.75375883,2549.7,2549.6,0.001]
[1751835583098,19.65348026,2549.7,2549.6,0.001]
[1751835583273,12.75375883,2549.7,2549.6,0.001]
[1751835583803,1.56483214,2549.7,2549.6,0.001]
[1751835583980,7.77000001,2549.8,2549.6,3.92318387]
[1751835584316,6.89972143,2549.7,2549.6,0.001]
[1751835584611,26.75160317,2549.7,2549.6,0.001]
[1751835584807,21.58115323,2549.7,2549.6,0.001]
[1751835586405,39.35115323,2549.7,2549.6,0.001]
[1751835587110,39.35093807,2549.7,2549.6,0.001]
[1751835587511,48.77493807,2549.7,2549.6,0.001]
[1751835588421,48.40822296,2549.7,2549.6,0.001]
[1751835588586,48.77461644,2549.7,2549.6,0.001]
[1751835590407,4.11818387,2549.6,2549.5,0.001]
[1751835590589,5.26463806,2549.6,2549.5,0.001]
[1751835591002,13.03463806,2549.6,2549.5,0.001]
[1751835593380,12.66838387,2549.6,2549.5,0.001]
[1751835593581,13.03426071,2549.6,2549.5,0.001]
[1751835594040,12.66838387,2549.6,2549.5,0.001]
[1751835594219,13.03430316,2549.6,2549.5,0.001]
[1751835594408,13.03424123,2549.6,2549.5,0.001]
[1751835601993,13.03421872,2549.6,2549.5,0.001]
[1751835602399,13.03423939,2549.6,2549.5,0.001]
[1751835602804,10.24185552,2549.6,2549.5,0.001]
[1751835603000,7.966,2549.6,2549.5,0.001]
[1751835603219,7.966,2549.6,2549.5,4.39397748]
[1751835603419,7.77,2549.6,2549.5,0.001]
[1751835604231,7.77,2549.6,2549.5,3.92333771]
[1751835604432,7.77,2549.6,2549.5,0.001]
[1751835604930,24.28299292,2549.6,2549.5,0.001]
[1751835605113,28.20517679,2549.6,2549.5,0.001]
[1751835605598,24.28299292,2549.6,2549.5,0.001]
[1751835606000,28.20517679,2549.6,2549.5,0.001]
[1751835607944,24.28299292,2549.6,2549.5,0.001]
[1751835610128,26.19499292,2549.6,2549.5,0.001]
[1751835613532,30.95017679,2549.6,2549.5,0.001]
[1751835613732,31.31694357,2549.6,2549.5,0.001]
[1751835614735,27.3947597,2549.6,2549.5,0.001]
[1751835614951,31.31694357,2549.6,2549.5,0.001]
[1751835617352,27.3947597,2549.6,2549.5,0.001]
[1751835618231,31.31694357,2549.6,2549.5,0.001]
[1751835619224,30.95017679,2549.6,2549.5,0.001]
[1751835620163,31.3168544,2549.6,2549.5,0.001]
[1751835620524,30.95017679,2549.6,2549.5,0.001]
[1751835620835,31.3168448,2549.6,2549.5,0.001]
[1751835621156,21.5208448,2549.6,2549.5,0.001]
[1751835622344,31.3148448,2549.6,2549.5,0.001]
[1751835623540,41.3148448,2549.6,2549.5,0.001]
[1751835627833,14.74273771,2549.5,2549.4,0.001]
[1751835628155,15.30562895,2549.5,2549.4,0.001]
[1751835628766,25.10162895,2549.5,2549.4,0.001]
[1751835630262,25.10153097,2549.5,2549.4,0.001]
[1751835630966,15.30553097,2549.5,2549.4,0.001]
[1751835631265,25.10153097,2549.5,2549.4,0.001]
[1751835631966,15.30553097,2549.5,2549.4,0.001]
[1751835632137,25.10053097,2549.5,2549.4,0.001]
[1751835632338,32.87053097,2549.5,2549.4,0.001]
[1751835639682,32.87042443,2549.5,2549.4,0.001]
[1751835642689,32.50373771,2549.5,2549.4,0.001]
[1751835642886,32.87053133,2549.5,2549.4,0.001]
[1751835648989,32.50373771,2549.5,2549.4,0.001]
[1751835649154,32.87080932,2549.5,2549.4,0.001]
[1751835649987,32.87081858,2549.5,2549.4,0.001]
[1751835652900,32.05041858,2549.5,2549.4,0.001]
[1751835654987,28.12808087,2549.5,2549.4,0.001]
[1751835655367,28.12859079,2549.5,2549.4,0.001]
[1751835658486,28.12850117,2549.5,2549.4,0.001]
[1751835659299,28.12848878,2549.5,2549.4,0.001]
[1751835659799,18.33548878,2549.5,2549.4,0.001]
[1751835660000,28.12948878,2549.5,2549.4,0.001]
[1751835660166,32.05182649,2549.5,2549.4,0.001]
[1751835661194,32.05181815,2549.5,2549.4,0.001]
[1751835664866,8.33548044,2549.5,2549.4,0.001]
[1751835665066,10.24548044,2549.5,2549.4,4.68099156]
[1751835665281,18.31099292,2549.5,2549.4,0.7585]
[1751835666068,9.682,2549.5,2549.4,4.68099156]
[1751835668501,9.682,2549.5,2549.4,0.7585]
[1751835668704,9.682,2549.5,2549.4,4.68099156]
[1751835670904,1.912,2549.5,2549.4,4.68099156]
[1751835672712,1.912,2549.5,2549.4,4.68099156]
[1751835674098,1.912,2549.5,2549.4,5.56104554]
[1751835674301,0.002,2549.5,2549.4,5.56104554]
[1751835674496,0.002,2549.5,2549.4,5.75704554]
[1751835681129,0.002,2549.5,2549.4,5.79627045]
[1751835681314,0.002,2549.5,2549.4,5.75704554]
[1751835682329,0.002,2549.5,2549.4,5.79627045]
[1751835687502,0.002,2549.5,2549.4,5.75704554]
[1751835691141,0.002,2549.5,2549.4,4.99954554]
[1751835691336,0.002,2549.5,2549.4,4.11949156]
[1751835698808,0.002,2549.5,2549.4,4.87749156]
[1751835700435,0.002,2549.5,2549.4,4.91671647]
[1751835706928,0.002,2549.5,2549.4,8.4456659]
[1751835707126,0.002,2549.5,2549.4,8.40644099]
[1751835707922,0.002,2549.5,2549.4,20.42763992]
[1751835708830,0.002,2549.5,2549.4,20.97763992]
[1751835709735,1e-08,2549.6,2549.5,15.29203771]
[1751835709937,1e-08,2549.6,2549.5,31.80303063]
[1751835721736,1e-08,2549.6,2549.5,23.17403771]
[1751835722035,1e-08,2549.6,2549.5,27.02293019]
[1751835726266,1e-08,2549.6,2549.5,35.65192311]
[1751835726851,1e-08,2549.6,2549.5,40.36276333]
[1751835730042,1e-08,2549.6,2549.5,44.49776333]
[1751835730233,1e-08,2549.6,2549.5,40.36276333]
[1751835732672,1e-08,2549.6,2549.5,35.65192311]
[1751835743581,2.6796,2550.6,2550.5,3.92079984]
[1751835743763,2.6796,2550.6,2550.5,12.77997203]
[1751835744085,0.7716,2550.6,2550.5,11.99579984]
[1751835746282,0.7716,2550.6,2550.5,4.11679984]
[1751835746486,0.7696,2550.5,2550.0,7.44136728]
[1751835746652,9.39859292,2550.1,2550.0,7.44146985]
[1751835746984,0.7696,2550.0,2549.9,7.44154875]
[1751835747772,0.7696,2550.0,2549.9,3.92164501]
[1751835754482,0.7696,2550.0,2549.9,3.96086223]
[1751835754688,1.908,2550.4,2550.3,3.92110732]
[1751835755185,2.7293,2550.4,2550.3,3.92110732]
[1751835757386,0.8213,2550.4,2550.3,3.92110732]
[1751835757569,0.8213,2550.4,2550.3,3.96031839]
[1751835759392,0.8213,2550.4,2550.3,3.92110732]
[1751835766096,2.7419,2550.6,2550.5,3.92079984]
[1751835766485,2.7419,2550.6,2550.5,4.11679984]
[1751835766879,1.91,2550.6,2550.5,4.11679984]
[1751835767078,1.91,2550.6,2550.5,6.13989082]
[1751835767996,1.91,2550.6,2550.5,6.10068283]
[1751835768697,1.91,2550.6,2550.5,6.13989082]
[1751835769004,1.91,2550.6,2550.5,6.10068283]
[1751835769302,1.91,2550.6,2550.5,6.13989082]
[1751835771106,1.91,2550.6,2550.5,6.10068283]
[1751835774251,1.91,2550.6,2550.5,13.98068283]
[1751835775592,0.002,2550.6,2550.5,13.98068283]
[1751835775922,0.002,2550.6,2550.5,25.30348283]
[1751835776609,1e-08,2550.6,2550.5,25.30348283]
[1751835777720,1e-08,2550.6,2550.5,28.82338657]
[1751835783236,1e-08,2550.6,2550.5,29.11732127]
[1751835786934,1e-08,2550.6,2550.5,25.59741753]
[1751835788837,1e-08,2550.7,2550.6,4.47064612]
[1751835789024,1e-08,2550.7,2550.6,8.35874506]
[1751835789221,1e-08,2550.7,2550.6,8.5155386]
[1751835805573,0.002,2550.8,2550.6,8.5155386]
[1751835805574,1e-08,2550.8,2550.7,14.68069241]
[1751835805733,1e-08,2550.8,2550.7,22.55769241]
[1751835805933,1e-08,2550.8,2550.7,26.40658489]
[1751835806336,0.002,2551.2,2551.1,3.91987769]
[1751835806535,0.002,2551.2,2551.1,11.83607646]
[1751835806748,0.002,2551.2,2551.1,4.11507769]
[1751835806972,0.002,2551.2,2551.1,4.15427646]
[1751835808274,0.002,2551.2,2551.1,5.92086353]
[1751835809784,0.002,2551.2,2551.1,5.88166476]
[1751835811676,0.002,2551.2,2551.1,15.92086353]
[1751835811990,0.002,2551.2,2551.1,15.88166476]
[1751835812163,0.002,2551.2,2551.1,19.40598656]
[1751835812676,1e-08,2551.2,2551.1,16.43166476]
[1751835824190,1e-08,2551.2,2551.1,19.95042525]
[1751835825709,1e-08,2551.2,2551.1,16.43166476]
[1751835827984,1e-08,2551.2,2551.1,25.51002755]
[1751835828309,0.79930001,2551.2,2551.1,14.11507769]
[1751835828514,0.79930001,2551.2,2550.8,3.51994986]
[1751835828714,0.7993,2550.9,2550.7,3.51994986]
[1751835828880,0.7993,2550.9,2550.6,0.196]
[1751835829210,0.7993,2550.7,2550.6,0.196]
[1751835829723,0.7993,2550.6,2550.5,0.001]
[1751835845140,0.7993,2550.6,2550.5,3.92179984]
[1751835845837,1.907,2550.7,2550.6,3.92064612]
[1751835846342,1.909,2550.9,2550.8,3.92033871]
[1751835847340,8.0742,2551.1,2550.6,0.196]
[1751835847341,2.1042,2551.1,2551.0,3.92003136]
[1751835847541,1.909,2551.1,2551.0,3.92003136]
[1751835849049,1e-08,2551.2,2551.0,3.92003136]
[1751835849216,1.90900001,2551.2,2551.0,3.92003136]
[1751835849426,1.90900001,2551.2,2551.0,3.91994673]
[1751835850261,1.90900001,2551.2,2551.1,3.91987769]
[1751835852669,1.90900001,2551.2,2551.0,3.91996872]
[1751835852966,1.90900001,2551.2,2550.9,3.92018503]
[1751835852967,1.90900001,2551.2,2550.9,3.92012797]
[1751835856372,1.90900001,2551.2,2551.0,3.91999709]
[1751835856665,1.90900001,2551.2,2551.1,3.91987769]
[1751835858676,1.90900001,2551.2,2551.0,3.91994869]
[1751835859052,1.90900001,2551.2,2551.1,3.91987769]
[1751835861766,1.90900001,2551.2,2551.1,4.31186546]
[1751835861983,1.90900001,2551.2,2551.1,4.50706546]
[1751835862188,1e-08,2551.2,2551.1,4.54626423]
[1751835862499,1e-08,2551.2,2551.1,15.89146423]
[1751835862661,1e-08,2551.2,2551.1,15.85226546]
[1751835863996,1e-08,2551.2,2551.1,15.30226546]
[1751835869496,1e-08,2551.2,2551.1,22.38806546]
[1751835874901,1e-08,2551.2,2551.1,14.50706546]
[1751835875203,1e-08,2551.2,2551.1,22.38706546]
[1751835879507,1e-08,2551.2,2551.1,21.99507769]
[1751835882997,1e-08,2551.2,2551.1,4.11507769]
[1751835884496,1e-08,2551.2,2551.1,0.1952]
[1751835884693,0.77020001,2551.2,2551.0,0.001]
[1751835885098,11.30819293,2551.2,2551.0,0.001]
[1751835885706,15.22797318,2551.2,2551.0,0.001]
[1751835890923,3.91987769,2551.1,2551.0,0.001]
[1751835891224,4.68007769,2551.1,2551.0,0.001]
[1751835905473,13.70887769,2551.1,2551.0,0.001]
[1751835905645,13.70787769,2551.1,2551.0,0.001]
[1751835906663,9.788,2551.1,2551.0,0.001]
[1751835908977,13.70787769,2551.1,2551.0,0.001]
[1751835909793,9.788,2551.1,2551.0,0.001]
[1751835913070,9.9832,2551.1,2551.0,3.92103136]
[1751835913256,2.1042,2551.1,2551.0,3.92103136]
[1751835916055,2.1042,2551.1,2551.0,0.001]
[1751835920294,2.1042,2551.1,2551.0,3.92103136]
[1751835922564,2.1042,2551.1,2551.0,0.001]
[1751835923472,2.1042,2551.1,2551.0,3.92103136]
[1751835927182,0.1952,2551.1,2551.0,3.92103136]
[1751835927516,1.90900001,2551.2,2551.1,4.71007769]
[1751835928191,1e-08,2551.2,2551.1,4.71007769]
[1751835952221,1e-08,2551.2,2551.1,4.74927646]
[1751835953363,1e-08,2551.2,2551.1,4.71007769]
[1751835953658,6.89068497,2551.2,2551.1,3.91987769]
[1751835953855,7.66158921,2551.2,2551.1,3.91987769]
[1751835954771,1e-08,2551.2,2551.1,3.91987769]
[1751835969387,1e-08,2551.2,2551.0,0.1962]
[1751835969590,9.44232526,2551.1,2551.0,0.001]
[1751835970787,0.8279,2551.1,2551.0,0.001]
[1751835971098,0.8279,2551.1,2551.0,3.92103136]
[1751835971287,0.8279,2551.1,2551.0,0.001]
[1751835973098,0.8279,2551.1,2551.0,3.92103136]
[1751835973905,1e-08,2551.2,2551.1,3.91987769]
[1751835974070,1.90800001,2551.2,2551.1,3.91987769]
[1751835974402,1.90800001,2551.2,2551.0,3.92094373]
[1751835974903,1.90800001,2551.2,2551.1,3.91987769]
[1751835982306,1.90800001,2551.2,2551.0,3.92094252]
[1751835983205,2.98965575,2551.2,2551.0,0.001]
[1751835985297,2.98965575,2551.2,2551.0,3.92102132]
[1751835985497,1.90800001,2551.2,2551.0,3.92102132]
[1751835993424,1.90800001,2551.2,2551.1,3.91987769]
[1751835994618,1e-08,2551.2,2551.1,3.91987769]
[1751835999659,1e-08,2551.2,2551.1,4.67237769]
[1751835999837,1e-08,2551.2,2551.1,4.11507769]
[1751836001217,1e-08,2551.2,2551.1,5.3461129]
[1751836002362,1e-08,2551.2,2551.1,6.21581167]
[1751836007833,1e-08,2551.2,2551.1,6.1766129]
[1751836022057,1e-08,2551.2,2551.1,6.21581167]
[1751836028469,1e-08,2551.2,2551.1,9.73758306]
[1751836028671,1e-08,2551.2,2551.1,9.69838429]
[1751836029169,1e-08,2551.2,2551.1,10.24838429]
[1751836051910,1e-08,2551.2,2551.1,20.24838429]
[1751836052280,1e-08,2551.2,2551.1,16.7266129]
[1751836065804,1e-08,2551.2,2551.1,21.42230808]
[1751836067214,1e-08,2551.2,2551.1,16.7266129]
[1751836088585,1e-08,2551.2,2551.1,24.6006129]
[1751836091188,1e-08,2551.2,2551.1,29.29630808]
[1751836092218,1e-08,2551.4,2551.3,3.91957041]
[1751836092495,1e-08,2551.4,2551.3,34.13480243]
[1751836092691,1e-08,2551.4,2551.3,34.09560673]
[1751836092897,1e-08,2551.4,2551.3,35.81434712]
[1751836093264,1e-08,2551.4,2551.3,40.5100423]
[1751836094296,1e-08,2551.4,2551.3,40.80005414]
[1751836094498,1e-08,2551.4,2551.3,32.19286991]
[1751836103007,1e-08,2551.4,2551.3,24.31886991]
[1751836103183,1e-08,2551.4,2551.3,22.53877041]
[1751836103379,1e-08,2551.4,2551.3,14.11477041]
[1751836103580,0.77240001,2551.4,2551.3,4.11477041]
[1751836103904,0.77240001,2551.4,2551.3,11.98877041]
[1751836104508,0.77240001,2551.4,2551.3,7.63274223]
[1751836104829,1.04034001,2551.4,2551.3,0.1952]
[1751836105176,0.7724,2551.3,2551.2,4.11484246]
[1751836109597,0.7724,2551.3,2551.1,3.91981735]
[1751836109918,0.7724,2551.3,2551.2,3.91972405]
[1751836115536,0.7724,2551.3,2551.2,4.11492405]
[1751836123237,0.00200001,2551.4,2551.3,3.91957041]
[1751836123611,0.00200001,2551.4,2551.3,4.11477041]
[1751836136247,0.00200001,2551.4,2551.3,4.11577041]
[1751836164284,0.00200001,2551.4,2551.3,6.83221704]
[1751836164651,0.00200001,2551.4,2551.3,6.87141274]
[1751836164853,0.00200001,2551.4,2551.3,6.83221704]
[1751836165770,0.00200001,2551.4,2551.3,6.87141274]
[1751836166172,0.00200001,2551.4,2551.3,6.83221704]
[1751836171989,0.00200001,2551.4,2551.3,9.57668886]
[1751836172955,0.00200001,2551.4,2551.3,6.05871704]
[1751836173890,0.00200001,2551.4,2551.3,9.61588456]
[1751836174069,0.00200001,2551.4,2551.3,6.05871704]
[1751836174270,0.00200001,2551.4,2551.3,9.61588456]
[1751836174589,0.00200001,2551.4,2551.3,6.05871704]
[1751836174896,0.00200001,2551.4,2551.3,6.09791274]
[1751836182068,0.00200001,2551.4,2551.3,9.61588456]
[1751836182268,0.00200001,2551.4,2551.3,6.05871704]
[1751836182469,0.00200001,2551.4,2551.3,6.09791274]
[1751836184282,0.00200001,2551.4,2551.3,4.15496611]
[1751836184673,0.00200001,2551.4,2551.3,7.67293793]
[1751836184910,0.00200001,2551.4,2551.3,7.63374223]
[1751836185775,0.00200001,2551.4,2551.3,7.67293793]
[1751836207534,0.00200001,2551.4,2551.3,7.63374223]
[1751836207720,0.00200001,2551.4,2551.3,9.65444886]
[1751836211913,0.00200001,2551.4,2551.3,17.52744886]
[1751836212114,0.00200001,2551.4,2551.3,9.65444886]
[1751836212315,0.00200001,2551.4,2551.3,17.52744886]
[1751836213033,0.00200001,2551.4,2551.3,15.50674223]
[1751836213330,0.00200001,2551.4,2551.3,7.63374223]
[1751836228443,0.00200001,2551.4,2551.3,7.67293793]
[1751836242049,0.00200001,2551.4,2551.3,8.22293793]
[1751836242253,1e-08,2551.4,2551.3,22.30792474]
[1751836242471,1e-08,2551.4,2551.3,26.15681722]
[1751836242625,1e-08,2551.4,2551.3,19.26666289]
[1751836244240,1e-08,2551.4,2551.3,23.9575633]
[1751836245033,1e-08,2551.4,2551.3,27.13966289]
[1751836261543,1e-08,2551.4,2551.3,31.8305633]
[1751836262549,1e-08,2551.4,2551.3,27.13966289]
[1751836266103,1e-08,2551.7,2551.6,15.23660957]
[1751836266250,1e-08,2551.7,2551.6,33.30529007]
[1751836266455,1e-08,2551.7,2551.6,33.50049007]
[1751836267157,1e-08,2551.7,2551.6,38.18684655]
[1751836268088,0.002,2552.3,2552.2,3.91818822]
[1751836268392,0.002,2552.3,2552.2,23.35722032]
[1751836268589,0.002,2552.3,2552.2,23.31803844]
[1751836269410,0.002,2552.3,2552.2,22.53438822]
[1751836270694,0.002,2552.3,2552.2,26.04862222]
[1751836271479,0.002,2552.3,2552.2,26.80632222]
[1751836271675,1e-08,2552.3,2552.2,26.80632222]
[1751836272003,1e-08,2552.3,2552.2,23.29208822]
[1751836272305,1e-08,2552.4,2552.3,13.91803471]
[1751836272663,1e-08,2552.4,2552.3,14.67573471]
[1751836272958,0.002,2552.5,2552.4,15.2255812]
[1751836272959,1e-08,2552.5,2552.4,15.2255812]
[1751836273188,1e-08,2552.5,2552.4,31.89429536]
[1751836273357,1e-08,2552.5,2552.4,34.6564021]
[1751836276090,1e-08,2552.5,2552.4,26.05288794]
[1751836276275,1e-08,2552.5,2552.4,25.29518794]
[1751836276678,1e-08,2552.5,2552.4,38.19046798]
[1751836276878,1e-08,2552.5,2552.4,34.6885021]
[1751836288031,0.0428574,2553.0,2552.9,14.46711387]
[1751836288227,0.0428574,2553.0,2552.6,3.49492609]
[1751836288428,0.7781,2552.9,2552.8,13.91726731]
[1751836288722,0.7781,2552.9,2552.8,21.98746731]
[1751836289120,0.0428574,2553.0,2552.9,3.91711387]
[1751836289455,0.0428574,2553.0,2552.9,3.956285]
[1751836289937,0.0428574,2553.0,2552.9,3.91711387]
[1751836296046,0.0428574,2553.0,2552.9,3.956285]
[1751836296221,0.0428574,2553.0,2552.9,3.91711387]
[1751836296741,0.0428574,2553.0,2552.9,11.829285]
[1751836296926,0.0428574,2553.0,2552.9,11.79011387]
[1751836298142,0.0428574,2553.0,2552.9,3.91711387]
[1751836298443,0.8247574,2553.0,2552.8,4.1124618]
[1751836298741,0.8247574,2553.0,2552.8,8.0702]
[1751836299047,0.8247574,2553.0,2552.8,11.9873927]
[1751836299546,0.7819,2552.9,2552.8,11.9873927]
[1751836300922,0.7819,2552.9,2552.8,8.0702]
[1751836301244,0.7819,2552.9,2552.8,11.98746731]
[1751836303730,0.7819,2552.9,2552.8,8.0702]
[1751836303933,0.7819,2552.9,2552.8,11.98746731]
[1751836304452,0.7819,2552.9,2552.8,8.0702]
[1751836305151,0.7819,2552.9,2552.8,11.98746731]
[1751836306249,0.7819,2552.9,2552.8,4.11246731]
[1751836306432,0.7819,2552.9,2552.8,11.98746731]
[1751836307245,0.7819,2552.9,2552.8,8.0702]
[1751836307447,0.7819,2552.9,2552.5,3.91759765]
[1751836307648,0.7819,2552.9,2552.6,11.98768855]
[1751836307853,0.7748,2552.8,2552.7,3.91740502]
[1751836308623,0.7748,2552.8,2552.6,11.98768637]
[1751836310750,0.7748,2552.8,2552.6,8.0702]
[1751836311053,0.7748,2552.8,2552.6,4.11276267]
[1751836311249,0.7748,2552.8,2552.7,3.91742077]
[1751836312228,0.7748,2552.8,2552.6,4.11268577]
[1751836312736,0.7748,2552.8,2552.7,3.91742077]
[1751836315950,0.7748,2552.8,2552.6,4.11268879]
[1751836316760,0.7748,2552.8,2552.7,3.91742077]
[1751836325079,0.8281574,2553.0,2552.9,3.91711387]
[1751836325360,1.90879314,2553.0,2552.9,3.91711387]
[1751836325566,0.0448574,2553.0,2552.9,3.91711387]
[1751836330991,0.0448574,2553.0,2552.9,11.79411387]
[1751836334587,1.908,2553.6,2553.5,3.91619345]
[1751836342503,0.8221,2553.8,2553.6,3.9159566]
[1751836342703,2.7301,2553.8,2553.6,3.9159566]
[1751836345301,0.0428574,2554.0,2553.9,3.91558009]
[1751836350506,0.0428574,2554.0,2553.8,3.9156471]
[1751836350707,0.0428574,2554.0,2553.9,3.91558009]
[1751836351908,0.0428574,2554.0,2553.9,4.11078009]
[1751836352097,0.0428574,2554.0,2553.9,5.78352043]
[1751836352983,0.0428574,2554.0,2553.9,4.11078009]
[1751836353304,0.0428574,2554.0,2553.9,22.76588009]
[1751836353509,0.0428574,2554.0,2553.9,22.76888009]
[1751836357619,0.0428574,2554.0,2553.9,4.89288009]
[1751836357805,0.0428574,2554.0,2553.9,11.98778009]
[1751836359476,0.0428574,2554.0,2553.9,0.1952]
[1751836359683,0.8552574,2554.0,2553.7,7.877]
[1751836360316,0.8552574,2554.0,2553.7,11.79280763]
[1751836361418,0.8552574,2554.0,2553.7,3.91580763]
[1751836364132,0.8552574,2554.0,2553.6,4.1111528]
[1751836364522,0.8552574,2554.0,2553.7,3.91586114]
[1751836364726,0.8552574,2554.0,2553.6,4.11115804]
[1751836366916,4.77069713,2554.0,2553.6,4.11115804]
[1751836367123,0.8552574,2554.0,2553.6,4.11115804]
[1751836368135,4.77069279,2554.0,2553.6,0.1952]
[1751836368453,3.91567032,2553.9,2553.6,0.1952]
[1751836368619,4.77076613,2554.0,2553.6,0.1952]
[1751836369713,12.51917982,2553.9,2553.5,0.001]
[1751836369946,0.9953,2553.8,2553.5,0.001]
[1751836370145,4.91107211,2553.8,2553.5,0.001]
[1751836371231,0.9953,2553.8,2553.5,0.001]
[1751836371451,2.9053,2553.8,2553.5,0.001]
[1751836371935,6.82105267,2553.8,2553.5,0.001]
[1751836372740,3.91592018,2553.7,2553.5,0.001]
[1751836373541,6.82110368,2553.8,2553.5,0.001]
[1751836373705,3.91591339,2553.7,2553.5,0.001]
[1751836373908,6.82111082,2553.8,2553.5,0.001]
[1751836374838,2.9053,2553.8,2553.5,0.001]
[1751836375162,6.82103576,2553.8,2553.5,0.001]
[1751836376939,2.9053,2553.8,2553.5,0.001]
[1751836378156,6.82114377,2553.8,2553.5,0.001]
[1751836380682,2.9053,2553.8,2553.5,0.001]
[1751836381430,2.1052,2553.8,2553.5,0.001]
[1751836381633,1.91,2553.8,2553.7,3.91588675]
[1751836382356,1.91,2553.8,2553.6,4.92085699]
[1751836384358,1.91,2553.8,2553.6,0.1952]
[1751836384527,1.91,2553.8,2553.6,4.11121277]
[1751836385743,1.91,2553.8,2553.7,3.91588675]
[1751836387964,1.91,2553.8,2553.5,3.91709748]
[1751836388433,1.91,2553.8,2553.6,3.91599811]
[1751836394569,1.91,2553.8,2553.5,3.91711255]
[1751836396870,1.91,2553.8,2553.6,3.91602059]
[1751836397765,1.91,2553.8,2553.7,3.91588675]
[1751836398567,1.912,2553.8,2553.7,4.69958675]
[1751836399150,0.002,2553.8,2553.7,4.69958675]
[1751836400052,0.002,2553.8,2553.7,4.89478675]
[1751836401680,0.002,2553.8,2553.7,5.77596631]
[1751836410485,0.002,2553.8,2553.7,5.81512517]
[1751836410987,0.002,2553.8,2553.7,16.36512517]
[1751836411279,0.002,2553.8,2553.7,16.32596631]
[1751836411681,0.002,2553.8,2553.7,19.83949777]
[1751836412055,0.0428574,2554.0,2553.9,4.46558009]
[1751836412260,1e-08,2554.0,2553.9,39.14227399]
[1751836412598,1e-08,2554.0,2553.9,30.68839852]
[1751836413191,1e-08,2554.0,2553.9,30.69212109]
[1751836416164,1e-08,2554.0,2553.9,17.18727257]
[1751836420511,1e-08,2554.0,2553.9,8.75927257]
[1751836420673,1e-08,2554.0,2553.9,11.98578009]
[1751836421399,1e-08,2554.0,2553.9,12.53578009]
[1751836421607,1e-08,2554.0,2553.9,12.53678009]
[1751836421915,0.00200001,2554.0,2553.9,12.53678009]
[1751836424818,0.00200001,2554.0,2553.9,0.1962]
[1751836424981,0.00200001,2554.0,2553.9,8.0712]
[1751836425188,0.00200001,2554.0,2553.9,12.38414928]
[1751836425527,0.00200001,2554.0,2553.9,12.93414928]
[1751836426921,0.00200001,2554.0,2553.9,13.69444928]
[1751836428413,0.00200001,2554.0,2553.9,23.69444928]
[1751836429816,0.00200001,2554.0,2553.9,13.69544928]
[1751836436119,0.00200001,2554.0,2553.9,17.2002978]
[1751836441134,0.00200001,2554.0,2553.9,13.69544928]
[1751836441642,1.9518574,2556.0,2554.9,4.46404751]
[1751836441823,0.8193,2555.8,2554.9,13.17218798]
[1751836442025,0.8193,2555.8,2554.9,13.13304751]
[1751836442410,0.8193,2555.8,2554.9,15.46815868]
[1751836442646,0.0078574,2555.0,2554.9,16.64011262]
[1751836442906,1e-08,2555.0,2554.9,18.69554395]
[1751836443116,0.0428574,2556.0,2555.3,0.55]
[1751836443312,0.0428574,2556.0,2555.4,13.17441448]
[1751836443552,0.0428574,2556.0,2555.9,4.46251613]
[1751836443753,0.0428574,2556.0,2555.9,12.37751613]
[1751836444106,0.0428574,2556.0,2555.6,2.33203578]
[1751836444342,0.0428574,2556.0,2555.9,3.91251613]
[1751836444914,0.0428574,2556.0,2555.9,13.16151613]
[1751836445319,0.002,2556.1,2556.0,4.46236306]
[1751836445544,0.0321324,2556.1,2556.0,4.46236306]
[1751836445732,0.0321324,2556.1,2556.0,22.40736306]
[1751836446311,0.002,2556.1,2556.0,22.40736306]
[1751836447032,0.002,2556.1,2556.0,22.41136306]
[1751836447227,0.002,2556.1,2556.0,14.46236306]
[1751836447439,0.002,2556.1,2556.0,16.37574962]
[1751836447638,0.002,2556.1,2556.0,6.37574962]
[1751836447841,0.002,2556.1,2556.0,12.41436306]
[1751836449541,0.002,2556.1,2556.0,4.46236306]
[1751836449742,0.002,2556.1,2556.0,12.41236306]
[1751836451345,0.002,2556.1,2556.0,13.21306306]
[1751836451644,0.002,2556.1,2556.0,25.98117153]
[1751836453941,0.002,2556.1,2556.0,25.18247153]
[1751836454812,0.002,2556.1,2556.0,4.65756306]
[1751836455018,0.002,2556.1,2556.0,12.60856306]
[1751836457945,0.002,2556.1,2556.0,12.60556306]
[1751836458854,0.002,2556.1,2556.0,8.6932]
[1751836459055,0.002,2556.1,2556.0,12.05456306]
[1751836459232,0.002,2556.1,2556.0,8.1422]
[1751836459549,0.002,2556.1,2556.0,12.05456306]
[1751836460552,0.0457328,2557.0,2556.1,0.55]
[1751836460738,0.0457328,2557.0,2556.7,3.91128398]
[1751836460942,0.0457328,2557.0,2556.8,8.034]
[1751836461754,0.0457328,2557.0,2556.8,11.94509252]
[1751836462658,0.0457328,2557.0,2556.8,8.034]
[1751836462953,0.0457328,2557.0,2556.7,11.94518007]
[1751836463832,0.51875364,2557.0,2556.7,11.94018007]
[1751836464036,0.0457328,2557.0,2556.6,11.9404443]
[1751836464353,0.0457328,2557.0,2556.8,3.91101208]
[1751836464525,0.0457328,2557.0,2556.7,3.911232]
[1751836464728,0.0457328,2557.0,2556.8,3.91102022]
[1751836465060,0.0457328,2557.0,2556.9,3.91098595]
[1751836465226,0.0457328,2557.0,2556.7,3.91129189]
[1751836465425,0.0457328,2557.0,2556.8,3.91111891]
[1751836466033,0.7748,2556.8,2556.4,8.031]
[1751836466252,0.7748,2556.8,2556.5,3.91152138]
[1751836466562,0.7748,2556.8,2556.3,3.91182872]
[1751836466853,0.7748,2556.8,2556.4,8.03]
[1751836467058,0.7748,2556.8,2556.4,3.91172882]
[1751836467361,3.91132523,2556.7,2556.3,8.58]
[1751836467659,14.18138746,2556.8,2556.3,8.58]
[1751836467957,10.27017173,2556.8,2555.9,0.7994]
[1751836468147,4.68616158,2556.7,2556.2,3.91205495]
[1751836468459,0.72763204,2556.6,2556.2,3.91205495]
[1751836468633,1.942,2556.5,2556.2,0.55]